Cogmind - Beta 13 X1 @@@ ROGUE MODE // 2023.08.20 @ 23:24:02 Player: VR-DUX Result: Destroyed by I6-4PQ(R) with Subdweller Laser Performance ------------- Evolutions (0) 0 Regions Visited (2) 400 Robots Destroyed (34) 170 Value Destroyed (902) 902 Prototype IDs (0) 0 Alien Tech Used (0) 0 Bonus (0) 0 TOTAL SCORE: 1472 Bonus ------- None Cogmind --------- Core Integrity 0/250 Matter 176/300 Energy 94/100 System Corruption 0% Temperature Cool (6) Movement Rolling (110) Location -10/Subcaves Parts ------- > --- POWER (1) -------- Subdweller Power Source > --- PROPULSION (2) --- Subdweller Monowheel Subdweller Monowheel > --- UTILITY (2) ------ Large Storage Unit Seismic Detector > --- WEAPON (2) ------- Particle Gun > --- INVENTORY (15) --- Light Ion Engine Light Nuclear Core Light Treads Compact Wheel Compact Wheel Medium Storage Unit Large Storage Unit Huge Storage Unit Signal Interpreter ECM Suite Light Assault Rifle Light Assault Rifle Subdweller Machine Gun Peak State ------------ > --- POWER ------------ Subdweller Power Source > --- PROPULSION ------- Subdweller Monowheel Subdweller Monowheel > --- UTILITY ---------- Large Storage Unit Seismic Detector > --- WEAPON ----------- Particle Gun > --- INVENTORY -------- Light Ion Engine Light Nuclear Core Light Treads Compact Wheel Compact Wheel Medium Storage Unit Large Storage Unit Huge Storage Unit Signal Interpreter ECM Suite Light Assault Rifle Light Assault Rifle Subdweller Machine Gun [Rating: 11] Favorites ----------- Power Light Ion Engine Engine Light Ion Engine Propulsion Light Treads Treads Light Treads Leg Aluminum Leg Wheel Subdweller Monowheel Utility Large Storage Unit Device Seismic Detector Storage Large Storage Unit Weapon Grenade Launcher Energy Gun Medium Laser Ballistic Gun Light Assault Rifle Ballistic Cannon Light Cannon Launcher Grenade Launcher Build | -11 -10 -10 ------- Run | Jun Mat Sub Slots Evolved . | . . . Power . | . . . Propulsion . | . . . Utility . | . . . Weapon . | . . . Parts Attached 24 | . 16 8 Power 5 | . 4 1 Engine 5 | . 4 1 Core . | . . . Reactor . | . . . Propulsion 7 | . 4 3 Treads 4 | . 4 . Leg . | . . . Wheel 3 | . . 3 Hover . | . . . Flight . | . . . Utility 5 | . 4 1 Device 2 | . 1 1 Storage 3 | . 3 . Processor . | . . . Hackware . | . . . Protection . | . . . Artifact . | . . . Weapon 7 | . 4 3 Energy Gun 1 | . . 1 Energy Cannon . | . . . Ballistic Gun 3 | . 2 1 Ballistic Cannon 1 | . 1 . Launcher 2 | . 1 1 Special Weapon . | . . . Impact Weapon . | . . . Slashing Weapon . | . . . Piercing Weapon . | . . . Special Melee Weapon . | . . . Unidentified Prototypes . | . . . Parts Lost 5 | . 2 3 Power . | . . . Propulsion 1 | . . 1 Utility . | . . . Weapon 4 | . 2 2 Highest Loss Streak 2 | . 2 2 To Critical Strikes . | . . . Average Slot Usage (%) 92 | . 89 97 Engine 14 | . 14 14 Treads 25 | . 25 25 Leg 1 | . 2 . Wheel 1 | . . 2 Device 8 | . 4 12 Storage 14 | . 14 14 Energy Gun 2 | . 3 1 Ballistic Gun 7 | . 13 . Ballistic Cannon 7 | . 3 12 Launcher 8 | . 6 11 Naked Turns . | . . . Heaviest Build 32 | 11 29 32 Greatest Support 40 | 20 40 40 Greatest Overweight (x) 1 | . . 1 Average Overweight (x) . | . . . Largest Inventory Capacity 15 | 8 15 15 Average Capacity 13 | 8 11 15 Most Carried 15 | 6 12 15 Average Carried 10 | 6 8 13 Final Capacity 15 | 8 15 15 Final Carried 13 | 6 12 13 Class Distribution -------------------- 86% | Mutant 13% | Scavenger-Mutant Dominant Class ---------------- Mutant | -10/Materials Mutant | -10/Subcaves Resources | -11 -10 -10 ----------- Run | Jun Mat Sub Matter Collected 792 | 200 337 255 Remotely . | . . . Salvage Created 1004 | . 771 233 Parts 61 | . 41 20 Haulers Intercepted 2 | . 2 . Recyclers Shooed . | . . . Parts Field Recycled . | . . . Retrieved Matter . | . . . Parts Self-Destructed 14 | . . 14 Prevented . | . . . Kills | -11 -10 -10 ------- Run | Jun Mat Sub Combat Hostiles Destroyed 23 | . 11 12 Guns 8 | . 7 1 Cannons 2 | . . 2 AOE 13 | . 4 9 Classes Destroyed 9 | . 7 2 Worker 1 | . 1 . Builder 2 | . 2 . Tunneler 1 | . 1 . Hauler 2 | . 2 . Recycler 2 | . 2 . Watcher 3 | . 3 . Swarmer 3 | . . 3 Grunt 11 | . 11 . Subdweller 9 | . . 9 Best Kill Streak 4 | . 4 3 Combat Bots Only 3 | . 3 3 Max Kills in Single Turn 3 | . 3 2 Gunslinging . | . . . Exploded 2 | . 2 2 Melee . | . . . Uniques/NPCs Destroyed . | . . . Combat | -11 -10 -10 -------- Run | Jun Mat Sub Damage Taken 1517 | . 950 567 Core 268 | . 130 138 Absorbed by Shields . | . . . Core Remaining (%) 100 | 100 . . Volleys Fired 157 | . 117 40 Largest 2 | . 2 1 Hottest 70 | . 70 65 Shots Fired 240 | . 200 40 Gun 202 | . 196 6 Cannon 6 | . . 6 Launcher 32 | . 4 28 Special . | . . . Kinetic 163 | . 157 6 Thermal 45 | . 39 6 Explosive 32 | . 4 28 Electromagnetic . | . . . Robot Hit Streak 16 | . 16 5 Robot Miss Streak 4 | . 4 1 Penetration Max . | . . . Secondary Targets 3 | . 3 . Max Gunslinging Chain 1 | . 1 . Shots Hit Robots 129 | . 117 12 Core Hits 70 | . 48 22 Critical Kills 1 | . 1 . Critical Parts Destroyed . | . . . Critical Strikes 7 | . 7 . Burn 6 | . 6 . Destroy 1 | . 1 . Melee Attacks . | . . . Impact . | . . . Slashing . | . . . Piercing . | . . . Sneak Attacks . | . . . Combat Hostiles . | . . . Follow-up Attacks . | . . . Damage Inflicted 2532 | . 1383 1149 Guns 1153 | . 1079 74 Cannons 88 | . . 88 Explosions 1291 | . 304 987 Melee . | . . . Ramming . | . . . Kinetic 916 | . 828 88 Thermal 325 | . 251 74 Explosive 1148 | . 161 987 Electromagnetic 143 | . 143 . Impact . | . . . Slashing . | . . . Piercing . | . . . Highest Corruption . | . . . Average Corruption . | . . . Corruption Purged . | . . . Corruption Blocked . | . . . Overload Shots . | . . . Overflow Damage . | . . . Projectiles . | . . . Explosions . | . . . Melee . | . . . Knockbacks 1 | . . 1 Impact . | . . . Kinetic 1 | . . 1 Secondary . | . . . Self-Inflicted Damage 124 | . 60 64 Shots 5 | . 2 3 Rammed . | . . . Targets Rammed . | . . . Kicked . | . . . Crushed . | . . . Highest Temperature 238 | . 238 . Average Temperature 48 | . 48 . Received Heat Transfer 648 | . 504 144 Siege Activations . | . . . Robots Corrupted . | . . . Combat Hostiles . | . . . Parts Fried . | . . . Impact Corruptions . | . . . Robots Melted . | . . . Combat Hostiles . | . . . Parts Melted 4 | . 3 1 Heat Transferred 1332 | . 1147 185 Parts Sabotaged . | . . . Parts Stolen . | . . . Parts Stripped . | . . . Power Chain Reactions . | . . . Missiles Intercepted . | . . . Alert | -11 -10 -10 ------- Run | Jun Mat Sub Peak Influence 239 | . 239 . Initial . | . . . Average 73 | . 73 . Maximum Alert Level 1 | . 1 . Low Security (%) 97 | 100 97 . Level 1 2 | . 2 . Level 2 . | . . . Level 3 . | . . . Level 4 . | . . . Level 5 . | . . . High Security . | . . . Max Security . | . . . Squads Dispatched 3 | . 3 . Investigation 2 | . 2 . Extermination . | . . . Reinforcement 1 | . 1 . Assault . | . . . Garrison . | . . . Intercept . | . . . Searches Triggered . | . . . Construction Impeded . | . . . Haulers Reinforced . | . . . Active Scanning Responses . | . . . Cargo Convoy Interrupts . | . . . Stealth | -11 -10 -10 --------- Run | Jun Mat Sub Distress Signals 1 | . 1 . Communications Jammed . | . . . Distress Signals . | . . . Times Spotted 43 | . 24 19 Peak Tracking Total 4 | . 4 3 Tactical Retreats 1 | . . 1 Traps | -11 -10 -10 ------- Run | Jun Mat Sub Traps Triggered 2 | . 2 . Indirectly . | . . . Trap Hack Attempts . | . . . Triggered . | . . . Disarmed . | . . . Reprogrammed . | . . . Reused . | . . . Traps Extracted . | . . . Installed . | . . . Triggered . | . . . Machines | -11 -10 -10 ---------- Run | Jun Mat Sub Machines Disabled 3 | . 3 . Max in Single Turn 1 | . 1 . Machines Repaired . | . . . Machines Sabotaged . | . . . Overloaded Fab Kills . | . . . Hacking | -11 -10 -10 --------- Run | Jun Mat Sub Machines Accessed 4 | . 4 . Terminals 3 | . 3 . Fabricators . | . . . Repair Stations . | . . . Recycling Units 1 | . 1 . Scanalyzers . | . . . Garrison Access . | . . . Total Hacks 10 | . 10 . Successful 4 | . 4 . Failed 5 | . 5 . Catastrophic 2 | . 2 . Database Lockouts 1 | . 1 . Manual 5 | . 5 . Terminals 9 | . 9 . Fabricators . | . . . Repair Stations . | . . . Recycling Units 1 | . 1 . Scanalyzers . | . . . Garrison Access . | . . . Terminal Hacks 3 | . 3 . Robot Analysis 1 | . 1 . Level Access Points 1 | . 1 . Zone Layout 1 | . 1 . Fabricator Hacks . | . . . Repair Station Hacks . | . . . Recycling Unit Hacks 1 | . 1 . Retrieve Components 1 | . 1 . Scanalyzer . | . . . Garrison Access Hacks . | . . . Unauthorized Hacks . | . . . Terminals . | . . . Fabricators . | . . . Repair Stations . | . . . Recycling Units . | . . . Scanalyzers . | . . . Garrison Access . | . . . Data Cores Recovered . | . . . Used . | . . . Hacking Detections 3 | . 3 . Full Trace Events . | . . . Feedback Events . | . . . Feedback Blocked . | . . . Robot Schematics Acquired . | . . . Robots Built . | . . . Authchips . | . . . Time . | . . . Total Robot Build Rating . | . . . Part Schematics Acquired . | . . . Parts Built . | . . . Authchips . | . . . Time . | . . . Total Part Build Rating . | . . . Parts Repaired . | . . . Time . | . . . Parts Recycled . | . . . Recycled Matter . | . . . Retrieved Matter . | . . . Retrieved Components 1 | . 1 . Parts Scanalyzed . | . . . Part Schematics Acquired . | . . . Parts Damaged . | . . . Bothacking | -11 -10 -10 ------------ Run | Jun Mat Sub Used RIF Installer . | . . . Robots Hacked . | . . . Non-combat . | . . . Combat . | . . . Robot Hacks Applied . | . . . Relay Couplers Released . | . . . Fabnet Peak Effective % . | . . . Robots Rewired . | . . . Allies Hacked . | . . . Hacks Repelled . | . . . Allies | -11 -10 -10 -------- Run | Jun Mat Sub Total Allies . | . . . Largest Group . | . . . Highest-Rated Group . | . . . Highest-Rated Ally . | . . . Total Orders . | . . . Ally Attacks . | . . . Total Damage . | . . . Kills . | . . . Allies Corrupted . | . . . Allies Melted . | . . . Intel | -11 -10 -10 ------- Run | Jun Mat Sub Robot Analysis Total 1 | . 1 . Derelict Logs Recovered . | . . . Drone Launches . | . . . Drone Recoveries . | . . . Exploration | -11 -10 -10 ------------- Run | Jun Mat Sub Turns Passed 3255 | 2 1797 1456 Spaces Moved 1790 | 2 902 886 Core . | . . . Treads 1557 | . 791 766 Legs 113 | 2 111 . Wheels 120 | . . 120 Hover . | . . . Flight . | . . . Fastest Speed 110 | 120 120 110 Average Speed 154 | 120 155 153 Slowest Speed 240 | 120 160 240 Overloaded Moves . | . . . Propulsion Burnouts . | . . . Robots Hopped . | . . . Cave-ins Triggered . | . . . Exploration Rate (%) 48 | 2 95 48 Regions Visited 2 Branch Regions 1 Pre-discovered Areas 1 | . . 1 Known Exits Taken . | . . . Unknown Exits Taken 2 | 1 1 . Scrap Searched 1 | . . 1 Spaces Dug 8 | . . 8 Terrain Destroyed 153 | . 24 129 Melee . | . . . Projectile . | . . . AOE 153 | . 24 129 Terrain Rammed . | . . . Walls Destroyed . | . . . Machines Disabled . | . . . Actions | -11 -10 -10 --------- Run | Jun Mat Sub Total 2077 | 1 1136 940 Wait 73 | . 72 1 Move 1788 | 1 901 886 Hop . | . . . Pick Up 19 | . 15 4 Fast Attach 2 | . 2 . Attach 9 | . 6 3 Detach . | . . . Swap 13 | . 8 5 Drop 16 | . 15 1 Fire 157 | . 117 40 Melee . | . . . Ram . | . . . Kick . | . . . Crush . | . . . Escape Stasis . | . . . Rewire . | . . . Trap . | . . . Miscellaneous . | . . . Route ------- -11/Junkyard -10/Materials (discovered 6 exits: *Mat x3 / [*Min x2] / [*Sub]) -10/Subcaves (discovered 2 exits: [*Mat] / [*Rec]) History --------- Turn | Location | Event 1 | -11/Junkyard | Discovered new exit (range 1) 3 | -11/Junkyard | Entered Materials 55 | -10/Materials | Central database locked down 303 | -10/Materials | Build established: Mutant 397 | -10/Materials | Discovered new exit (range 9) 534 | -10/Materials | Discovered new exit (range 12) 768 | -10/Materials | Discovered new exit (range 14) 879 | -10/Materials | Discovered new exit (range 13) 974 | -10/Materials | Core integrity fell below 50% 1067 | -10/Materials | Discovered new exit (range 7) 1685 | -10/Materials | Identified exit to Materials 1776 | -10/Materials | Discovered new exit (range 8) 1800 | -10/Materials | Entered Subcaves 1801 | -10/Subcaves | Ambushed by Subdwellers from Twisted Machinery 1967 | -10/Subcaves | Ambushed by Subdweller buried in earth 2542 | -10/Subcaves | A swath of the cavern ceiling suddenly collapsed 2695 | -10/Subcaves | Discovered new exit (range 10) 2869 | -10/Subcaves | A Subdweller sparked back to life 2869 | -10/Subcaves | A Subdweller sparked back to life 2869 | -10/Subcaves | A Subdweller sparked back to life 2871 | -10/Subcaves | Core integrity fell below 20% 2905 | -10/Subcaves | A swath of the cavern ceiling suddenly collapsed 3200 | -10/Subcaves | Learned location of Zion (-6) 3200 | -10/Subcaves | Met a Zionite searching for "candidates" 3218 | -10/Subcaves | Discovered new exit (range 15) 3256 | -10/Subcaves | Destroyed by I6-4PQ(R) with Subdweller Laser Last Messages --------------- 03075_ S-10 Pest destroyed. 03079_ Acquired 5 matter. 03081_ Acquired 3 matter. 03085_ Flight Unit fries itself beyond repair. 03087_ Acquired 11 matter. 03088_ Flight Unit fries itself beyond repair. 03098_ Lgt. Cannon destroyed. 03102_ Lgt. Treads destroyed. 03109_ P0-4T9(R) destroyed. 03111_ Acquired 3 matter. 03116_ Acquired 46 matter. 03128_ Acquired 1 matter. 03133_ Acquired 15 matter. 03188_ Sub. Power Source shoots sparks and powers down. 03199_ RZ-7EO(z): "She is not going to be happy we haven't found any suitable candidates yet." 03200_ RZ-7EO(z): "Hey you! It's really dangerous down here, I feel that you could die at any moment. For your health and safety might I suggest a trip to Zion?" World map updated: -6/Zion. 03218_ EXIT=FOUND Map ----- +----------------------------------------------------+ | ?????????????????????????????????????????????????? | | ?????????????????????????????????????????????????? | | ?????????????????????????????????????????????????? | | ?????????????????????????????????????????????????? | | ?????????????????????????????????????????????????? | | ?????????????????????????????????????????????????? | | ?????????????????????????????????????????????????? | | ?????????????????????????????????????????????????? | | ?????????????????????????????????????????????????? | | ?????????????????????????????????????????????????? | | ?????????????????????????????????????????????????? | | ?????????????????????????????????????????????????? | | ?????????????????????????????????????????????????? | | ??????????????####?????????#####??????#??????????? | | ?????????????## ##???###### ##??# ###????????? | | ????????????## #?### ## ## #????????? | | ????????????# #?# #????????? | | ?????????????# ### ?????????? | | ????????????## ## #### #???????????? | | ???????????## #??????????????????? | | ?????????### ## ##?????????????????? | | ?????????# #### #?????????????????? | | ?????????### < ## #### #?????????????????? | | ???????????# #####R ###?????????????????? | | ???????????# ##??## #???????????????????? | | ???????????## #???# @ #???????????????????? | | ????????????# #??# ##???????????????????? | | ?????##?????# ##?# #????????????????????? | | ????## #????# #??# ???????????????????? | | ????# #???# ##?# ??????????????????? | | ????# #??# ## ### ?????????????????? | | ????# #?# #??? ????????????????? | | ?????# ## ## ??? ???????????????? | | ??????# ### ????? ?????????????? | | ??????### ## ????? #????????????? | | ????????## """## ??????#????????????? | | ?????????# ##### #???????????????????? | | ?????????# ##???# #???????????????????? | | ?????????# #???? ##???????????????????? | | ?????????## #?????? #????????????????????? | | ?????????## #???????? "?????????????????????? | | ?????????# ##??????????????????????????????????? | | ???????### #???????????????????????????????????? | | ???????# #???????????????????????????????????? | | ?????### ## #??????????????????????????????????? | | ?????# #?#""?????????????????????????????????? | | ?????# ##??#""????????????????????????????????? | | ?????# #???""#???????????????????????????????? | | ????#### #????"#???????????????????????????????? | | ????# ####??????????????????????????????????? | +----------------------------------------------------+ Best States ------------- Heat Dissipation 35 Energy Generation 15 Energy Capacity 250 Matter Stores 300 Matter Capacity 300 Sight Range 16 Terrain Scan Density 10 Evasion (%) 55 Recoil Reduction 2 Item Schematics ----------------- None Robot Schematics ------------------ None Fabricated ------------ Nothing Alien Tech Used ----------------- None Achievements -------------- None Challenges ------------ None Game ------ Seed LatentBoreDriver Manual? 0 Play Time 00:22:23 Cumulative 65.1 hours Start 2023.08.20 @ 23:03:09 End 2023.08.20 @ 23:24:02 Sessions 1 Manual Loads 0 Difficulty Rogue Special Mode None Game No. 47 Rogue 47 Adventurer 0 Explorer 0 Win Type - Total 1 Types 1/0/0/0/0/0/0/0/0 Lore% 38 Gallery% 32 Achievement% 36 Wizard Run 0 Options --------- ASCII 0 Keyboard 0 Movement Mouse Keybinds 0 Fullscreen 1 Font 16/SmallcapsGlow Map View 84x54 Tactical HUD 1 Map Filters NONE Filters NONE Steam 1 RUN: 2cac2ad0-5dbb-4130-84e2-885c93589a3d